fUST/lending_fUST_20240726
["ID","MTS","AMOUNT","RATE_DAILY","PERIOD"]
[333247241,1721976654337,-291.19,0.00013972,2]
[333247242,1721976654346,-151.0,0.00013972,2]
[333247243,1721976654357,-153.962868,0.00013972,2]
[333247244,1721976654367,-500.0,0.00013972,2]
[333247245,1721976654377,-500.0,0.00013972,2]
[333247246,1721976654389,-530.3,0.00013972,2]
[333247247,1721976654398,-500.0,0.00013972,2]
[333247248,1721976654409,-195.8,0.00013972,2]
[333247249,1721976654418,-272.0,0.00013972,2]
[333247250,1721976654427,-169.58,0.00013972,2]
[333247251,1721976654436,-166.21,0.00013972,2]
[333247252,1721976654446,-452.2,0.00013972,2]
[333247253,1721976654455,-500.0,0.00013972,2]
[333247254,1721976654464,-151.0,0.00013972,2]
[333247255,1721976654474,-151.0,0.00013972,2]
[333247256,1721976654483,-151.0,0.00013972,2]
[333247257,1721976654493,-151.0,0.00013972,2]
[333247258,1721976654502,-500.0,0.00013972,2]
[333247259,1721976654512,-578.13,0.00013972,2]
[333247260,1721976654521,-360.96,0.00013972,2]
[333247261,1721976654531,-500.0,0.00013972,2]
[333247262,1721976654541,-177.3,0.00013972,2]
[333247263,1721976654550,-178.46,0.00013972,2]
[333247264,1721976654559,-500.0,0.00013972,2]
[333247265,1721976654569,-548.03,0.00013972,2]
[333247266,1721976654582,-609.89,0.00013972,2]
[333247267,1721976654598,-500.0,0.00013972,2]
[333247268,1721976654613,-206.36662,0.00013972,2]
[333247269,1721976654628,-206.36662,0.00013972,2]
[333247270,1721976654641,-206.36662,0.00013972,2]
[333247271,1721976654655,-206.36662,0.00013972,2]
[333247272,1721976654668,-206.36662,0.00013972,2]
[333247273,1721976654682,-206.36662,0.00013972,2]
[333247274,1721976654695,-206.36662,0.00013972,2]
[333247275,1721976654711,-206.366613,0.00013972,2]
[333247276,1721976654725,-500.0,0.00013972,2]
[333247277,1721976654737,-615.44,0.00013972,2]
[333247278,1721976654751,-567.62,0.00013972,2]
[333247279,1721976654764,-500.0,0.00013972,2]
[333247280,1721976654778,-635.64,0.00013972,2]
[333247281,1721976654790,-220.7,0.00013972,2]
[333247282,1721976654802,-471.16,0.00013972,2]
[333247283,1721976654813,-602.4,0.00013972,2]
[333247284,1721976654826,-266.428987,0.00013972,2]
[333247285,1721976654839,-266.428987,0.00013972,2]
[333247286,1721976654852,-266.428987,0.00013972,2]
[333247287,1721976654867,-266.428995,0.00013972,2]
[333247288,1721976654883,-371.65,0.00013972,2]
[333247289,1721976654897,-443.8,0.00013972,2]
[333247290,1721976654910,-500.0,0.00013972,2]
[333247291,1721976654923,-563.4,0.00013972,2]
[333247292,1721976654933,-413.44,0.00013972,2]
[333247293,1721976654944,-177.8,0.00013972,2]
[333247294,1721976654969,-262.78,0.00013972,2]
[333247295,1721976654990,-500.0,0.00013972,2]
[333247296,1721976655006,-500.0,0.00013972,2]
[333247297,1721976655020,-500.0,0.00013972,2]
[333247298,1721976655036,-500.0,0.00013972,2]
[333247299,1721976655053,-500.0,0.00013972,2]
[333247300,1721976655071,-500.0,0.00013972,2]
[333247301,1721976655083,-151.0,0.00013972,2]
[333247302,1721976655095,-506.72955264,0.00013972,2]
[333247303,1721976655109,-220.095671,0.00013972,2]
[333247304,1721976655123,-500.0,0.00013972,2]
[333247305,1721976655138,-220.09567095,0.00013972,2]
[333247306,1721976655153,-500.0,0.00013972,2]
[333247307,1721976655168,-319.81,0.00013972,2]
[333247308,1721976655183,-506.10749249,0.00013972,2]
[333247309,1721976655197,-500.0,0.00013972,2]
[333247310,1721976655211,-500.0,0.00013972,2]
[333247311,1721976655226,-500.0,0.00013972,2]
[333247312,1721976655240,-411.42748,0.00013972,2]
[333247313,1721976655253,-411.427471,0.00013972,2]
[333247314,1721976655267,-512.50882319,0.00013972,2]
[333247315,1721976655280,-500.0,0.00013972,2]
[333247316,1721976655293,-500.0,0.00013972,2]
[333247317,1721976655306,-306.0,0.00013973,2]
[333247318,1721976655319,-206.7446654,0.00013973,2]
[333247319,1721976655332,-1091.32,0.00014,2]
[333247320,1721976655345,-600.0,0.00014084,2]
[333247321,1721976655357,-153.0,0.00014192,2]
[333247322,1721976655370,-600.0,0.0001423,2]
[333247323,1721976655385,-538.14,0.00014246,2]
[333247324,1721976655397,-500.0,0.00014246,2]
[333247325,1721976655410,-252.11695064,0.00014246,2]
[333247326,1721976655422,-500.0,0.00014246,2]
[333247327,1721976655433,-500.0,0.00014246,2]
[333247328,1721976655445,-500.0,0.00014246,2]
[333247329,1721976655457,-500.0,0.00014246,2]
[333247330,1721976655470,-1058.69,0.00014246,2]
[333247331,1721976655481,-500.0,0.00014246,2]
[333247332,1721976655493,-519.84560829,0.00014246,2]
[333247333,1721976655504,-500.0,0.00014246,2]
[333247334,1721976655516,-500.0,0.00014246,2]
[333247335,1721976655528,-500.0,0.00014246,2]
[333247336,1721976655540,-177.69039988,0.00014246,2]
[333247337,1721976655553,-500.0,0.00014246,2]
[333247338,1721976655564,-500.0,0.00014246,2]
[333247339,1721976655577,-504.23031542,0.00014246,2]
[333247340,1721976655588,-578.68,0.00014246,2]
[333247341,1721976655600,-500.0,0.00014246,2]
[333247342,1721976655612,-500.0,0.00014246,2]
[333247343,1721976655624,-500.0,0.00014246,2]
[333247344,1721976655637,-500.0,0.00014246,2]
[333247345,1721976655650,-500.0,0.00014246,2]
[333247346,1721976655662,-500.0,0.00014246,2]
[333247347,1721976655674,-500.0,0.00014246,2]
[333247348,1721976655687,-799.98,0.00014246,2]
[333247349,1721976655698,-1245.42,0.00014246,2]
[333247350,1721976655710,-500.0,0.00014246,2]
[333247351,1721976655723,-500.0,0.00014246,2]
[333247352,1721976655735,-685.7,0.00014246,2]
[333247353,1721976655746,-513.2,0.00014246,2]
[333247354,1721976655758,-500.0,0.00014246,2]
[333247355,1721976655769,-500.0,0.00014246,2]
[333247356,1721976655781,-500.0,0.00014246,2]
[333247357,1721976655792,-500.0,0.00014246,2]
[333247358,1721976655804,-500.0,0.00014246,2]
[333247359,1721976655816,-500.0,0.00014246,2]
[333247360,1721976655828,-500.0,0.00014246,2]
[333247361,1721976655839,-500.0,0.00014246,2]
[333247362,1721976655851,-693.06,0.00014246,2]
[333247363,1721976655863,-508.09186644,0.00014246,2]
[333247364,1721976655875,-791.19,0.00014246,2]
[333247365,1721976655887,-500.0,0.00014246,2]
[333247366,1721976655898,-500.0,0.00014246,2]
[333247367,1721976655911,-500.0,0.00014246,2]
[333247368,1721976655922,-500.0,0.00014246,2]
[333247369,1721976655936,-240.14028747,0.00014246,2]
[333247370,1721976655948,-500.0,0.00014246,2]
[333247371,1721976655959,-574.9,0.00014246,2]
[333247372,1721976655972,-500.0,0.00014246,2]
[333247373,1721976655984,-500.0,0.00014246,2]
[333247374,1721976655996,-500.0,0.00014246,2]
[333247375,1721976656007,-500.0,0.00014246,2]
[333247376,1721976656020,-500.0,0.00014246,2]
[333247377,1721976656031,-502.34,0.00014246,2]
[333247378,1721976656043,-309.90414721,0.00014246,2]
[333247379,1721976656056,-639.26,0.00014246,2]
[333247380,1721976656068,-500.0,0.00014246,2]
[333247381,1721976656079,-500.0,0.00014246,2]
[333247382,1721976656091,-677.3,0.00014246,2]
[333247383,1721976656103,-555.82786213,0.00014246,2]
[333247384,1721976656115,-500.0,0.00014246,2]
[333247385,1721976656126,-500.0,0.00014246,2]
[333247386,1721976656139,-500.0,0.00014246,2]
[333247387,1721976656151,-1787.1,0.00014246,2]
[333247388,1721976656162,-548.24,0.00014246,2]
[333247389,1721976656175,-508.47711334,0.00014246,2]
[333247390,1721976656187,-500.0,0.00014246,2]
[333247391,1721976656199,-507.51573713,0.00014246,2]
[333247392,1721976656212,-500.0,0.00014246,2]
[333247393,1721976656223,-500.0,0.00014246,2]
[333247394,1721976656409,-500.0,0.00014246,2]
[333247395,1721976656426,-500.0,0.00014246,2]
[333247396,1721976656440,-319.72917475,0.00014246,2]
[333247397,1721976656450,-1115.44,0.00014246,2]
[333247398,1721976656460,-500.0,0.00014246,2]
[333247399,1721976656470,-510.88043451,0.00014246,2]
[333247400,1721976656481,-500.0,0.00014246,2]
[333247401,1721976656494,-1171.1,0.00014246,2]
[333247402,1721976656505,-500.0,0.00014246,2]
[333247403,1721976656516,-500.0,0.00014246,2]
[333247404,1721976656526,-500.0,0.00014246,2]
[333247405,1721976656536,-500.0,0.00014246,2]
[333247406,1721976656547,-500.0,0.00014246,2]
[333247407,1721976656556,-500.0,0.00014246,2]
[333247408,1721976656567,-500.0,0.00014246,2]
[333247409,1721976656576,-500.0,0.00014246,2]
[333247410,1721976656585,-500.0,0.00014246,2]
[333247411,1721976656595,-500.0,0.00014246,2]
[333247412,1721976656604,-500.0,0.00014246,2]
[333247413,1721976656615,-500.0,0.00014246,2]
[333247414,1721976656626,-1102.4,0.00014246,2]
[333247415,1721976656638,-514.83220706,0.00014246,2]
[333247416,1721976656650,-500.0,0.00014246,2]
[333247417,1721976656662,-500.0,0.00014246,2]
[333247418,1721976656673,-500.0,0.00014246,2]
[333247419,1721976656683,-187.13585754,0.00014246,2]
[333247420,1721976656936,-1445.30184261,0.000135,2]
[333247421,1721976656946,-312.86414246,0.00014246,2]
[333247422,1721976656955,-500.0,0.00014246,2]
[333247423,1721976656965,-1067.62,0.00014246,2]
[333247424,1721976656977,-508.61883504,0.00014246,2]
[333247425,1721976656987,-559.32,0.00014246,2]
[333247426,1721976656997,-500.0,0.00014246,2]
[333247427,1721976657007,-500.0,0.00014246,2]
[333247428,1721976657017,-5934.86,0.00014246,2]
[333247429,1721976657027,-500.0,0.00014246,2]
[333247430,1721976657038,-984.04,0.00014246,2]
[333247431,1721976657048,-500.0,0.00014246,2]
[333247432,1721976657058,-500.0,0.00014246,2]
[333247433,1721976657068,-913.44,0.00014246,2]
[333247434,1721976657078,-500.0,0.00014246,2]
[333247435,1721976657087,-500.0,0.00014246,2]
[333247436,1721976657097,-660.95,0.00014246,2]
[333247437,1721976657107,-500.0,0.00014246,2]
[333247438,1721976657118,-500.0,0.00014246,2]
[333247439,1721976657130,-7223.94,0.00014246,2]
[333247440,1721976657142,-500.0,0.00014246,2]
[333247441,1721976657152,-1135.64,0.00014246,2]
[333247442,1721976657164,-178.20762842,0.00014246,2]
[333247443,1721976657175,-500.0,0.00014246,2]
[333247444,1721976657185,-545.37,0.00014246,2]
[333247445,1721976657195,-504.19036486,0.00014246,2]
[333247446,1721976657207,-500.0,0.00014246,2]
[333247447,1721976657219,-720.7,0.00014246,2]
[333247448,1721976657230,-1030.3,0.00014246,2]
[333247449,1721976657241,-677.8,0.00014246,2]
[333247450,1721976657253,-3228.97,0.00014246,2]
[333247451,1721976657265,-500.0,0.00014246,2]
[333247452,1721976657277,-678.46,0.00014246,2]
[333247453,1721976657286,-500.0,0.00014246,2]
[333247454,1721976657297,-500.0,0.00014246,2]
[333247455,1721976657307,-500.0,0.00014246,2]
[333247456,1721976657318,-497.32950744,0.00014246,2]
[333247457,1721976657331,-1078.13,0.00014246,2]
[333247458,1721976657342,-762.78,0.00014246,2]
[333247459,1721976657352,-500.0,0.00014246,2]
[333247460,1721976657363,-1598.94,0.00014246,2]
[333247461,1721976657375,-500.0,0.00014246,2]
[333247462,1721976657387,-3140.86,0.00014246,2]
[333247463,1721976657398,-500.0,0.00014246,2]
[333247464,1721976657409,-695.8,0.00014246,2]
[333247465,1721976657421,-500.0,0.00014246,2]
[333247466,1721976657430,-500.0,0.00014246,2]
[333247467,1721976657443,-871.65,0.00014246,2]
[333247468,1721976657455,-1286.52,0.00014246,2]
[333247469,1721976657467,-633.13,0.00014246,2]
[333247470,1721976657477,-860.96,0.00014246,2]
[333247471,1721976657490,-500.0,0.00014246,2]
[333247472,1721976657502,-971.16,0.00014246,2]
[333247473,1721976657512,-500.0,0.00014246,2]
[333247474,1721976657523,-943.8,0.00014246,2]
[333247475,1721976657534,-500.0,0.00014246,2]
[333247476,1721976657546,-1109.89,0.00014246,2]
[333247477,1721976657556,-6081.05,0.00014246,2]
[333247478,1721976657568,-500.0,0.00014246,2]
[333247479,1721976657580,-500.0,0.00014246,2]
[333247480,1721976657591,-568.63,0.00014246,2]
[333247481,1721976657603,-669.58,0.00014246,2]
[333247482,1721976657615,-2701.76,0.00014246,2]
[333247483,1721976657626,-772.0,0.00014246,2]
[333247484,1721976657639,-500.0,0.00014246,2]
[333247485,1721976657651,-500.0,0.00014246,2]
[333247486,1721976657663,-500.0,0.00014246,2]
[333247487,1721976657672,-500.0,0.00014246,2]
[333247488,1721976657681,-3688.09,0.00014246,2]
[333247489,1721976657692,-1048.03,0.00014246,2]
[333247490,1721976657702,-600.48,0.00014246,2]
[333247491,1721976657711,-500.0,0.00014246,2]
[333247492,1721976657720,-500.0,0.00014246,2]
[333247493,1721976657729,-666.21,0.00014246,2]
[333247494,1721976657738,-1022.41,0.00014246,2]
[333247495,1721976657748,-500.0,0.00014246,2]
[333247496,1721976657758,-952.2,0.00014246,2]
[333247497,1721976657768,-500.0,0.00014246,2]
[333247498,1721976657778,-1225.02,0.00014246,2]
[333247499,1721976657787,-500.0,0.00014246,2]
[333247500,1721976657797,-1226.57,0.00014246,2]
[333247501,1721976657806,-500.0,0.00014246,2]
[333247502,1721976657816,-1324.8,0.00014246,2]
[333247503,1721976657825,-500.0,0.00014246,2]
[333247504,1721976657835,-984.56,0.00014246,2]
[333247505,1721976657845,-500.0,0.00014246,2]
[333247506,1721976657854,-1063.4,0.00014246,2]
[333247507,1721976657863,-1993.05,0.00014246,2]
[333247508,1721976657873,-500.0,0.00014246,2]
[333247509,1721976657884,-500.0,0.00014246,2]
[333247510,1721976657893,-500.0,0.00014246,2]
[333247511,1721976657903,-1145.89,0.00014246,2]
[333247512,1721976657913,-500.0,0.00014246,2]
[333247513,1721976657922,-500.0,0.00014246,2]
[333247514,1721976657932,-998.91,0.00014246,2]
[333247515,1721976657941,-879.72,0.00014246,2]
[333247516,1721976657951,-500.0,0.00014246,2]
[333247517,1721976657961,-500.0,0.00014246,2]
[333247518,1721976657974,-500.0,0.00014246,2]
[333247519,1721976657984,-674.67,0.00014246,2]
[333247520,1721976657994,-500.0,0.00014246,2]
[333247521,1721976658003,-601.03,0.00014246,2]
[333247522,1721976658014,-500.0,0.00014246,2]
[333247523,1721976658023,-674.9,0.00014246,2]
[333247524,1721976658032,-2781.03,0.00014246,2]
[333247525,1721976658043,-500.0,0.00014246,2]
[333247526,1721976658053,-500.0,0.00014246,2]
[333247527,1721976658063,-500.0,0.00014246,2]
[333247528,1721976658073,-500.0,0.00014246,2]
[333247529,1721976658082,-500.0,0.00014246,2]
[333247530,1721976658091,-1427.25,0.00014246,2]
[333247531,1721976658101,-500.0,0.00014246,2]
[333247532,1721976658110,-651.32,0.00014246,2]
[333247533,1721976658120,-1020.09,0.00014246,2]
[333247534,1721976658130,-853.61,0.00014246,2]
[333247535,1721976658139,-1340.71,0.00014246,2]
[333247536,1721976658149,-500.0,0.00014246,2]
[333247537,1721976658158,-500.0,0.00014246,2]
[333247538,1721976658168,-500.0,0.00014246,2]
[333247539,1721976658178,-500.0,0.00014246,2]
[333247540,1721976658187,-1453.44,0.00014246,2]
[333247541,1721976658197,-624.41,0.00014246,2]
[333247542,1721976658207,-500.0,0.00014246,2]
[333247543,1721976658217,-643.73,0.00014246,2]
[333247544,1721976658226,-1142.59,0.00014246,2]
[333247545,1721976658235,-819.81,0.00014246,2]
[333247546,1721976658245,-500.0,0.00014246,2]
[333247547,1721976658254,-500.0,0.00014246,2]
[333247548,1721976658264,-1148.37,0.00014246,2]
[333247549,1721976658274,-2059.33,0.00014246,2]
[333247550,1721976658283,-500.0,0.00014246,2]
[333247551,1721976658293,-1073.38,0.00014246,2]
[333247552,1721976658302,-1839.54,0.00014246,2]
[333247553,1721976658311,-846.13,0.00014246,2]
[333247554,1721976658321,-500.0,0.00014246,2]
[333247555,1721976658331,-500.0,0.00014246,2]
[333247556,1721976658340,-1443.58,0.00014246,2]
[333247557,1721976658350,-500.0,0.00014246,2]
[333247558,1721976658359,-245.98,0.00014246,2]
[333247559,1721976658369,-500.0,0.00014246,2]
[333247560,1721976658378,-500.0,0.00014246,2]
[333247561,1721976658392,-500.0,0.00014246,2]
[333247562,1721976658401,-261.06,0.00014246,2]
[333247563,1721976658411,-550.1,0.00014246,2]
[333247564,1721976658420,-226.83,0.00014246,2]
[333247565,1721976658430,-500.0,0.00014246,2]
[333247566,1721976658439,-500.0,0.00014246,2]
[333247567,1721976658448,-500.0,0.00014246,2]
[333247568,1721976658458,-453.44,0.00014246,2]
[333247569,1721976658467,-500.0,0.00014246,2]
[333247570,1721976658477,-443.58,0.00014246,2]
[333247571,1721976658486,-225.02,0.00014246,2]
[333247572,1721976658496,-324.8,0.00014246,2]
[333247573,1721976658505,-226.57,0.00014246,2]
[333247574,1721976658515,-340.71,0.00014246,2]
[333247575,1721976658524,-500.0,0.00014246,2]
[333247576,1721976658533,-427.25,0.00014246,2]
[333247577,1721976658543,-245.42,0.00014246,2]
[333247578,1721976658552,-500.0,0.00014246,2]
[333247579,1721976658561,-500.0,0.00014246,2]
[333247580,1721976658571,-500.0,0.00014246,2]
[333247581,1721976658580,-598.94,0.00014246,2]
[333247582,1721976658590,-500.0,0.00014246,2]
[333247583,1721976658599,-500.0,0.00014246,2]
[333247584,1721976658608,-500.0,0.00014246,2]
[333247585,1721976658618,-500.0,0.00014246,2]
[333247586,1721976658627,-500.0,0.00014246,2]
[333247587,1721976658640,-500.0,0.00014246,2]
[333247588,1721976658649,-500.0,0.00014246,2]
[333247589,1721976658658,-171.1,0.00014246,2]
[333247590,1721976658667,-286.52,0.00014246,2]
[333247591,1721976658676,-558.69,0.00014246,2]
[333247592,1721976658686,-750.0,0.00014247,2]
[333247593,1721976658696,-182.159339,0.00014259,2]
[333247594,1721976658705,-157.640075,0.00014259,2]
[333247595,1721976658715,-163.907305,0.00014259,2]
[333247596,1721976658724,-157.225884,0.00014259,2]
[333247597,1721976658734,-175.523729,0.00014259,2]
[333247598,1721976658743,-184.253258,0.00014259,2]
[333247599,1721976658752,-157.439511,0.00014259,2]
[333247600,1721976658762,-156.47242,0.00014348,2]
[333247601,1721976658772,-179.580164,0.00014348,2]
[333247602,1721976658782,-157.444688,0.00014348,2]
[333247603,1721976658791,-168.368595,0.00014348,2]
[333247604,1721976658803,-212.384086,0.00014348,2]
[333247605,1721976658815,-226.809146,0.00014348,2]
[333247606,1721976658824,-184.650394,0.00014348,2]
[333247607,1721976658836,-172.226733,0.00014348,2]
[333247608,1721976658845,-172.846676,0.00014348,2]
[333247609,1721976658854,-157.640075,0.00014348,2]
[333247610,1721976658866,-600.0,0.00014375,2]
[333247611,1721976658877,-163.907305,0.00014437,2]
[333247612,1721976658890,-620.00000022,0.00014485,2]
[333247613,1721976658900,-157.640075,0.00014497,2]
[333247614,1721976658910,-175.523729,0.00014497,2]
[333247615,1721976658922,-538.14,0.0001452,2]
[333247616,1721976658933,-500.0,0.0001452,2]
[333247617,1721976658944,-231.99078122,0.0001452,2]
[333247618,1721976658955,-500.0,0.0001452,2]
[333247619,1721976658965,-500.0,0.0001452,2]
[333247620,1721976658982,-500.0,0.0001452,2]
[333247621,1721976658994,-1058.69,0.0001452,2]
[333247622,1721976659005,-500.0,0.0001452,2]
[333247623,1721976659016,-500.0,0.0001452,2]
[333247624,1721976659027,-500.0,0.0001452,2]
[333247625,1721976659036,-500.0,0.0001452,2]
[333247626,1721976659047,-500.0,0.0001452,2]
[333247627,1721976659057,-500.0,0.0001452,2]
[333247628,1721976659067,-578.68,0.0001452,2]
[333247629,1721976659076,-500.0,0.0001452,2]
[333247630,1721976659086,-500.0,0.0001452,2]
[333247631,1721976659095,-500.0,0.0001452,2]
[333247632,1721976659104,-500.0,0.0001452,2]
[333247633,1721976659113,-500.0,0.0001452,2]
[333247634,1721976659124,-500.0,0.0001452,2]
[333247635,1721976659135,-500.0,0.0001452,2]
[333247636,1721976659144,-799.98,0.0001452,2]
[333247637,1721976659154,-1245.42,0.0001452,2]
[333247638,1721976659164,-500.0,0.0001452,2]
[333247639,1721976659174,-500.0,0.0001452,2]
[333247640,1721976659184,-685.7,0.0001452,2]
[333247641,1721976659193,-513.2,0.0001452,2]
[333247642,1721976659203,-500.0,0.0001452,2]
[333247643,1721976659212,-506.65289107,0.0001452,2]
[333247644,1721976659222,-235.84743861,0.0001452,2]
[333247645,1721976659231,-500.0,0.0001452,2]
[333247646,1721976659241,-500.0,0.0001452,2]
[333247647,1721976659251,-505.52642577,0.0001452,2]
[333247648,1721976659261,-500.0,0.0001452,2]
[333247649,1721976659271,-500.0,0.0001452,2]
[333247650,1721976659281,-693.06,0.0001452,2]
[333247651,1721976659293,-791.19,0.0001452,2]
[333247652,1721976659303,-500.0,0.0001452,2]
[333247653,1721976659313,-500.0,0.0001452,2]
[333247654,1721976659322,-500.0,0.0001452,2]
[333247655,1721976659332,-500.0,0.0001452,2]
[333247656,1721976659341,-500.0,0.0001452,2]
[333247657,1721976659350,-574.9,0.0001452,2]
[333247658,1721976659360,-500.0,0.0001452,2]
[333247659,1721976659371,-500.0,0.0001452,2]
[333247660,1721976659382,-500.0,0.0001452,2]
[333247661,1721976659393,-310.10141156,0.0001452,2]
[333247662,1721976659403,-500.0,0.0001452,2]
[333247663,1721976659417,-502.34,0.0001452,2]
[333247664,1721976659427,-639.26,0.0001452,2]
[333247665,1721976659436,-500.0,0.0001452,2]
[333247666,1721976659446,-500.0,0.0001452,2]
[333247667,1721976659456,-677.3,0.0001452,2]
[333247668,1721976659466,-500.0,0.0001452,2]
[333247669,1721976659475,-500.0,0.0001452,2]
[333247670,1721976659486,-500.0,0.0001452,2]
[333247671,1721976659496,-1787.1,0.0001452,2]
[333247672,1721976659505,-548.24,0.0001452,2]
[333247673,1721976659514,-500.0,0.0001452,2]
[333247674,1721976659524,-500.0,0.0001452,2]
[333247675,1721976659533,-500.0,0.0001452,2]
[333247676,1721976659543,-614.62884491,0.0001452,2]
[333247677,1721976659553,-505.73215604,0.0001452,2]
[333247678,1721976659562,-1115.44,0.0001452,2]
[333247679,1721976659572,-530.15225313,0.0001452,2]
[333247680,1721976659581,-500.0,0.0001452,2]
[333247681,1721976659590,-1171.1,0.0001452,2]
[333247682,1721976659600,-500.0,0.0001452,2]
[333247683,1721976659609,-500.0,0.0001452,2]
[333247684,1721976659618,-500.0,0.0001452,2]
[333247685,1721976659774,-500.0,0.0001452,2]
[333247686,1721976659784,-500.0,0.0001452,2]
[333247687,1721976659795,-500.0,0.0001452,2]
[333247688,1721976659810,-500.0,0.0001452,2]
[333247689,1721976659820,-500.0,0.0001452,2]
[333247690,1721976659832,-500.0,0.0001452,2]
[333247691,1721976659843,-500.0,0.0001452,2]
[333247692,1721976659852,-1102.4,0.0001452,2]
[333247693,1721976659863,-500.0,0.0001452,2]
[333247694,1721976659873,-500.0,0.0001452,2]
[333247695,1721976659885,-500.0,0.0001452,2]
[333247696,1721976659895,-500.0,0.0001452,2]
[333247697,1721976659905,-1067.62,0.0001452,2]
[333247698,1721976659917,-559.32,0.0001452,2]
[333247699,1721976659927,-507.41780141,0.0001452,2]
[333247700,1721976659936,-5934.86,0.0001452,2]
[333247701,1721976659947,-500.0,0.0001452,2]
[333247702,1721976659957,-984.04,0.0001452,2]
[333247703,1721976659967,-500.0,0.0001452,2]
[333247704,1721976659980,-500.0,0.0001452,2]
[333247705,1721976659991,-913.44,0.0001452,2]
[333247706,1721976660000,-500.0,0.0001452,2]
[333247707,1721976660010,-504.48662313,0.0001452,2]
[333247708,1721976660021,-660.95,0.0001452,2]
[333247709,1721976660031,-500.0,0.0001452,2]
[333247710,1721976660041,-7223.94,0.0001452,2]
[333247711,1721976660052,-500.0,0.0001452,2]
[333247712,1721976660062,-1135.64,0.0001452,2]
[333247713,1721976660072,-500.0,0.0001452,2]
[333247714,1721976660082,-545.37,0.0001452,2]
[333247715,1721976660092,-277.20004014,0.0001452,2]
[333247716,1721976660102,-720.7,0.0001452,2]
[333247717,1721976660112,-1030.3,0.0001452,2]
[333247718,1721976660122,-677.8,0.0001452,2]
[333247719,1721976660132,-3228.97,0.0001452,2]
[333247720,1721976660142,-500.0,0.0001452,2]
[333247721,1721976660152,-678.46,0.0001452,2]
[333247722,1721976660163,-500.0,0.0001452,2]
[333247723,1721976660173,-500.0,0.0001452,2]
[333247724,1721976660184,-504.17779074,0.0001452,2]
[333247725,1721976660194,-1078.13,0.0001452,2]
[333247726,1721976660203,-762.78,0.0001452,2]
[333247727,1721976660214,-500.0,0.0001452,2]
[333247728,1721976660224,-1598.94,0.0001452,2]
[333247729,1721976660234,-500.0,0.0001452,2]
[333247730,1721976660244,-3140.86,0.0001452,2]
[333247731,1721976660254,-500.0,0.0001452,2]
[333247732,1721976660264,-695.8,0.0001452,2]
[333247733,1721976660274,-587.41680843,0.0001452,2]
[333247734,1721976660284,-500.0,0.0001452,2]
[333247735,1721976660294,-1286.52,0.0001452,2]
[333247736,1721976660303,-871.65,0.0001452,2]
[333247737,1721976660313,-633.13,0.0001452,2]
[333247738,1721976660325,-860.96,0.0001452,2]
[333247739,1721976660336,-386.11989247,0.0001452,2]
[333247740,1721976660349,-971.16,0.0001452,2]